bitfinex/quotes_BTCUSD_20250204
["timestamp","ask_amount","ask_price","bid_price","bid_amount"]
[1738687466539,0.00030901,99292.0,99291.0,0.10366244]
[1738687466983,0.15137801,99292.0,99291.0,0.00127738]
[1738687467226,0.00030901,99292.0,99270.0,0.201468]
[1738687467427,0.00030901,99292.0,99278.0,0.15109]
[1738687467428,0.15108,99285.0,99278.0,0.15109]
[1738687467679,0.15108,99285.0,99279.0,0.10238506]
[1738687467883,0.201436,99287.0,99279.0,0.10238506]
[1738687468087,0.00030901,99292.0,99280.0,0.00126378]
[1738687468288,0.151084,99282.0,99281.0,0.10238506]
[1738687468766,0.151081,99285.0,99281.0,0.10364884]
[1738687469126,0.201428,99291.0,99281.0,0.10364884]
[1738687469331,0.00030901,99292.0,99281.0,0.10238506]
[1738687469539,0.00030901,99292.0,99290.0,0.151071]
[1738687469753,0.00030901,99292.0,99291.0,0.10238506]
[1738687470099,0.00030901,99292.0,99291.0,0.25471935]
[1738687471549,0.00030901,99292.0,99291.0,0.10364835]
[1738687471759,0.00330901,99292.0,99291.0,0.10364835]
[1738687472114,0.00330901,99292.0,99291.0,0.10238506]
[1738687472361,0.00430901,99292.0,99291.0,0.10364835]
[1738687472516,0.00130901,99292.0,99291.0,0.10364835]
[1738687472715,0.00030901,99292.0,99291.0,0.10364835]
[1738687472941,0.00330901,99292.0,99291.0,0.25471935]
[1738687473302,0.00330901,99292.0,99291.0,0.10364835]
[1738687474132,0.00030901,99292.0,99291.0,0.25471935]
[1738687474567,0.00030901,99292.0,99291.0,0.10364835]
[1738687476038,0.00030901,99292.0,99291.0,0.25471935]
[1738687476861,0.00030901,99292.0,99291.0,0.10364835]
[1738687477058,0.00030901,99292.0,99291.0,0.25471935]
[1738687477253,0.00030901,99292.0,99291.0,0.10364835]
[1738687478065,0.00030901,99292.0,99291.0,0.27771935]
[1738687478247,0.00030901,99292.0,99291.0,0.28771935]
[1738687478627,0.00030901,99292.0,99291.0,0.43771935]
[1738687479210,0.00030901,99292.0,99291.0,0.44796954]
[1738687479426,0.00030901,99292.0,99291.0,0.44896954]
[1738687480155,0.0498,99331.0,99308.0,0.01]
[1738687480362,0.00022428,99334.0,99312.0,0.27642406]
[1738687480784,0.00022428,99334.0,99312.0,0.27765058]
[1738687481182,0.00022428,99334.0,99312.0,0.42765058]
[1738687481383,0.00022428,99334.0,99312.0,0.46884744]
[1738687481591,0.00022428,99334.0,99312.0,0.46984744]
[1738687481788,0.00022428,99334.0,99312.0,0.47984744]
[1738687482000,0.00022428,99334.0,99312.0,0.47884744]
[1738687482412,0.00022428,99334.0,99312.0,0.47984744]
[1738687482608,0.00022428,99334.0,99312.0,0.48084744]
[1738687483155,0.00022428,99334.0,99312.0,0.47984744]
[1738687483326,0.00022428,99334.0,99312.0,0.48084744]
[1738687483758,0.00022428,99334.0,99312.0,0.47984744]
[1738687483890,0.00022428,99334.0,99312.0,0.46984744]
[1738687484136,0.00022428,99334.0,99312.0,0.48184744]
[1738687484336,0.00022428,99334.0,99312.0,0.47984744]
[1738687484516,0.00022428,99334.0,99312.0,1.03349577]
[1738687484729,0.00022428,99334.0,99312.0,1.03249577]
[1738687486347,0.00022428,99334.0,99312.0,1.0526086]
[1738687487002,0.00022428,99334.0,99312.0,1.0506086]
[1738687487190,0.00022428,99334.0,99312.0,1.0516086]
[1738687489959,0.00022428,99334.0,99312.0,1.0416086]
[1738687490333,0.00022428,99334.0,99312.0,1.0406086]
[1738687490581,0.00022428,99334.0,99312.0,1.0426086]
[1738687490941,0.00022428,99334.0,99312.0,1.0406086]
[1738687491135,0.00022428,99334.0,99312.0,1.0426086]
[1738687491565,0.00022428,99334.0,99312.0,1.0326086]
[1738687491763,0.083,99327.0,99312.0,0.83949577]
[1738687491983,0.0498,99316.0,99312.0,0.10561158]
[1738687492198,1.5,99315.0,99312.0,0.10561158]
[1738687492392,0.0498,99316.0,99312.0,0.10561158]
[1738687492599,0.0498,99316.0,99312.0,0.25665058]
[1738687492824,0.0498,99316.0,99312.0,0.10561158]
[1738687493407,0.0498,99316.0,99312.0,0.10361158]
[1738687493609,0.0498,99316.0,99312.0,0.10561158]
[1738687493610,0.15126128,99313.0,99312.0,0.10561158]
[1738687494032,0.15126128,99313.0,99312.0,0.10238506]
[1738687494878,0.15126128,99313.0,99312.0,0.10438506]
[1738687495085,0.15126128,99313.0,99312.0,0.10238506]
[1738687495294,0.15226128,99313.0,99312.0,0.10238506]
[1738687496814,0.15426128,99313.0,99312.0,0.10238506]
[1738687498304,0.15426128,99313.0,99282.0,0.2302363]
[1738687498305,0.078,99311.0,99282.0,0.2302363]
[1738687498546,0.078,99311.0,99286.0,0.10238506]
[1738687498781,0.078,99311.0,99286.0,0.10359585]
[1738687499016,0.151061,99297.0,99291.0,0.15107]
[1738687499258,0.078,99311.0,99292.0,0.10238506]
[1738687499487,0.201391,99309.0,99292.0,0.10238506]
[1738687499726,0.151064,99296.0,99293.0,0.00121974]
[1738687499959,0.151061,99298.0,99294.0,0.10238506]
[1738687500205,0.201407,99301.0,99294.0,0.10238506]
[1738687500647,0.151064,99296.0,99295.0,0.00121974]
[1738687500874,0.40279,99307.0,99285.0,0.040293]
[1738687500875,0.0799,99306.0,99285.0,0.040293]
[1738687501079,0.0799,99303.0,99285.0,0.10238506]
[1738687501288,0.151078,99286.0,99285.0,0.10238506]
[1738687501499,0.151078,99286.0,99279.0,0.040298]
[1738687501500,0.151084,99282.0,99279.0,0.040298]
[1738687501671,1.827439,99286.0,99281.0,0.00019153]
[1738687501672,0.151083,99283.0,99281.0,0.00019153]
[1738687501875,0.151084,99282.0,99281.0,0.00019153]
[1738687504002,0.151084,99282.0,99281.0,0.00219153]
[1738687504403,0.151084,99282.0,99281.0,0.00019153]
[1738687505055,0.126,99286.0,99281.0,0.00019153]
[1738687505056,0.126,99286.0,99281.0,0.10257659]
[1738687505260,0.0466,99298.0,99283.0,0.402888]
[1738687505436,0.0466,99298.0,99297.0,0.151061]
[1738687505605,0.0779,99308.0,99297.0,0.10238506]
[1738687505805,0.0779,99308.0,99300.0,0.151056]
[1738687505806,0.151046,99307.0,99300.0,0.151056]
[1738687506015,0.0466,99310.0,99301.0,0.10238506]
[1738687506217,0.0776,99317.0,99312.0,0.151039]
[1738687506424,0.047,99321.0,99312.0,0.25342406]
[1738687507426,0.00122428,99313.0,99312.0,0.25342406]
[1738687507833,0.00022428,99313.0,99312.0,0.25342406]
[1738687508203,0.00022428,99313.0,99312.0,0.25542406]
[1738687509581,0.00022428,99313.0,99312.0,0.25342406]
[1738687509987,0.00022428,99313.0,99312.0,0.26562546]
[1738687510457,0.00022428,99313.0,99312.0,0.28862546]
[1738687510953,0.00022428,99313.0,99312.0,0.28662546]
[1738687511150,0.00022428,99313.0,99312.0,0.28862546]
[1738687511534,0.00022428,99313.0,99312.0,0.28984746]
[1738687512774,0.00022428,99313.0,99312.0,0.44984746]
[1738687512976,0.00022428,99313.0,99312.0,0.4790792]
[1738687513406,0.00022428,99313.0,99312.0,0.4810792]
[1738687513626,0.00022428,99313.0,99312.0,0.4790792]
[1738687514052,0.00022428,99313.0,99312.0,0.4810792]
[1738687514252,0.00022428,99313.0,99312.0,0.4790792]
[1738687514552,0.200483,99349.0,99341.0,0.150993]
[1738687514850,0.00014067,99348.0,99342.0,0.10238506]
[1738687515013,0.00014067,99348.0,99342.0,0.10358615]
[1738687515207,0.00014067,99348.0,99342.0,0.25457815]
[1738687515412,1.5,99347.0,99342.0,0.25457815]
[1738687515967,0.15099,99344.0,99342.0,0.10358615]
[1738687516178,0.00047979,99348.0,99342.0,0.10358615]
[1738687516378,0.00014067,99348.0,99342.0,0.10238506]
[1738687516531,1.50014067,99348.0,99344.0,0.150989]
[1738687516698,1.50014067,99348.0,99345.0,0.25337306]
[1738687516898,1.50014067,99348.0,99346.0,0.150986]
[1738687517152,0.00014067,99348.0,99347.0,0.10238506]
[1738687517353,0.00014067,99348.0,99347.0,0.10359272]
[1738687517529,0.00014067,99348.0,99347.0,0.10477898]
[1738687518153,0.00214067,99348.0,99347.0,0.12777898]
[1738687518721,0.00214067,99348.0,99347.0,0.12657132]
[1738687519232,0.00014067,99348.0,99347.0,0.12657132]
[1738687519437,0.00014067,99348.0,99347.0,0.12777887]
[1738687519710,0.00114067,99348.0,99347.0,0.12777887]
[1738687519913,0.00014067,99348.0,99347.0,0.14649264]
[1738687520272,0.00014067,99348.0,99347.0,0.14749264]
[1738687521242,0.00014067,99348.0,99347.0,0.29847764]
[1738687521433,0.00014067,99348.0,99347.0,0.29727009]
[1738687521822,0.00014067,99348.0,99347.0,0.44727009]
[1738687522084,0.00014067,99348.0,99347.0,0.45693097]
[1738687522599,0.00014067,99348.0,99347.0,0.45593097]
[1738687522819,0.00014067,99348.0,99347.0,0.45693097]
[1738687523079,0.00014067,99348.0,99347.0,0.45593097]
[1738687523339,0.00014067,99348.0,99347.0,0.44627009]
[1738687523644,0.00014067,99348.0,99347.0,0.44727009]
[1738687523883,0.00014067,99348.0,99347.0,0.42327009]
[1738687524106,0.00014067,99348.0,99347.0,0.42427009]
[1738687524300,0.00014067,99348.0,99347.0,0.12228509]
[1738687524502,0.19932467,99348.0,99347.0,0.10357132]
[1738687524918,0.04834067,99348.0,99347.0,0.10238506]
[1738687525125,1.54834067,99348.0,99347.0,0.10238506]
[1738687526155,0.04834067,99348.0,99347.0,0.10238506]
[1738687526453,0.04834067,99348.0,99347.0,0.10453633]
[1738687526582,0.04834067,99348.0,99347.0,0.10353633]
[1738687526783,0.04834067,99348.0,99347.0,0.10238506]
[1738687526979,0.04834067,99348.0,99347.0,0.10338506]
[1738687527188,0.04834067,99348.0,99347.0,0.10453633]
[1738687527820,0.19932467,99348.0,99347.0,0.10338506]
[1738687528721,0.04834067,99348.0,99347.0,0.10338506]
[1738687528924,0.00014067,99348.0,99347.0,0.25437006]
[1738687529105,0.00014067,99348.0,99347.0,0.25553052]
[1738687529305,0.00014067,99348.0,99347.0,0.10454552]
[1738687529508,0.00014067,99348.0,99347.0,0.10354552]
[1738687529949,0.00033912,99344.0,99320.0,0.10887497]
[1738687530156,0.00033912,99344.0,99334.0,0.10238506]
[1738687530157,0.151004,99335.0,99334.0,0.10238506]
[1738687530508,0.1291,99343.0,99334.0,0.10354552]
[1738687530737,0.151001,99338.0,99334.0,0.10354552]
[1738687530937,0.201324,99342.0,99334.0,0.10354552]
[1738687531142,0.151004,99335.0,99334.0,0.10354552]
[1738687531358,0.00033912,99339.0,99334.0,0.10354552]
[1738687531911,0.150994,99342.0,99335.0,0.151003]
[1738687532111,0.00014067,99348.0,99339.0,0.10238506]
[1738687532321,0.00014067,99348.0,99347.0,0.150985]
[1738687532544,0.00014067,99348.0,99347.0,0.42757771]
[1738687532765,0.00014067,99348.0,99347.0,0.42637006]
[1738687532922,0.00014067,99348.0,99347.0,0.42753726]
[1738687533348,0.00014067,99348.0,99347.0,0.44624807]
[1738687533771,0.00014067,99348.0,99347.0,0.45649693]
[1738687533966,0.00014067,99348.0,99347.0,1.00735781]
[1738687534430,0.00014067,99348.0,99347.0,1.00835781]
[1738687534759,0.00014067,99348.0,99347.0,0.99869693]
[1738687536165,0.00014067,99348.0,99347.0,0.99769693]
[1738687536524,0.00014067,99348.0,99347.0,0.99869693]
[1738687536684,0.00014067,99348.0,99347.0,0.99769693]
[1738687537064,0.00014067,99348.0,99347.0,0.99869693]
[1738687537296,0.00014067,99348.0,99347.0,0.99769693]
[1738687537509,0.00014067,99348.0,99347.0,1.01900486]
[1738687537882,0.00014067,99348.0,99347.0,1.01800486]
[1738687538643,9.5e-07,99349.0,99348.0,0.34364488]
[1738687538854,9.5e-07,99349.0,99348.0,0.47723341]
[1738687539060,9.5e-07,99349.0,99348.0,0.47836493]
[1738687539422,0.00440995,99351.0,99350.0,0.34364188]
[1738687539622,0.00440995,99351.0,99350.0,0.47723041]
[1738687540028,0.00440995,99351.0,99350.0,0.47836193]
[1738687540586,0.00440995,99351.0,99350.0,0.49707274]
[1738687540953,0.00440995,99351.0,99350.0,0.49807274]
[1738687541586,0.00440995,99351.0,99350.0,1.03927274]
[1738687541846,0.00022491,99352.0,99351.0,0.34363988]
[1738687541847,8.6e-07,99352.0,99351.0,0.34363988]
[1738687542067,8.6e-07,99352.0,99351.0,0.47722841]
[1738687542301,8.6e-07,99352.0,99351.0,0.47835175]
[1738687543067,8.6e-07,99352.0,99351.0,0.47935175]
[1738687543261,8.6e-07,99352.0,99351.0,0.49706256]
[1738687543488,8.6e-07,99352.0,99351.0,0.32740168]
[1738687543652,8.6e-07,99352.0,99351.0,0.30540168]
[1738687544223,8.6e-07,99352.0,99351.0,0.47740168]
[1738687544421,0.03050086,99360.0,99359.0,0.150967]
[1738687544628,0.03050086,99360.0,99359.0,0.25335206]
[1738687544857,0.00022471,99372.0,99371.0,0.150949]
[1738687545030,0.00022471,99372.0,99371.0,0.27633406]
[1738687545273,0.00022471,99372.0,99371.0,0.27745199]
[1738687545548,0.00022471,99372.0,99371.0,0.25445199]
[1738687546315,0.00022471,99372.0,99371.0,0.27745199]
[1738687546498,0.00022471,99372.0,99371.0,0.30871877]
[1738687547116,0.00022471,99372.0,99371.0,0.30971877]
[1738687547543,0.00022471,99372.0,99371.0,0.32742958]
[1738687547944,0.00015916,99372.0,99371.0,0.32742958]
[1738687548726,0.00015916,99372.0,99371.0,0.2961628]
[1738687548965,0.00015916,99372.0,99371.0,0.30443037]
[1738687549175,0.00015916,99372.0,99371.0,0.2771878]
[1738687549421,0.150916,99393.0,99378.0,0.150938]
[1738687549593,0.150932,99383.0,99371.0,0.17468381]
[1738687549782,0.233334,99381.0,99372.0,0.10238506]
[1738687549978,0.0824,99381.0,99372.0,0.10238506]
[1738687550177,1.5,99376.0,99372.0,0.10238506]
[1738687550417,1.5,99376.0,99375.0,0.150943]
[1738687550654,1.5,99376.0,99375.0,0.25332806]
[1738687551797,1.5,99376.0,99375.0,0.27203887]
[1738687552076,0.0824,99381.0,99380.0,0.150935]
[1738687552285,0.0824,99381.0,99380.0,0.25332006]
[1738687552457,1.5824,99381.0,99380.0,0.25332006]
[1738687552676,1.5824,99381.0,99380.0,0.10238506]
[1738687553048,1.5824,99381.0,99375.0,0.16965381]
[1738687553049,0.150939,99378.0,99375.0,0.01871081]
[1738687553230,0.150937,99379.0,99376.0,0.10238506]
[1738687553435,0.0824,99381.0,99376.0,0.10238506]
[1738687553670,0.150935,99380.0,99376.0,0.10238506]
[1738687553878,0.1257,99377.0,99354.0,0.04026]
[1738687554105,0.150972,99356.0,99355.0,0.10238506]
[1738687554306,0.276672,99356.0,99355.0,0.10238506]
[1738687554464,1.776672,99356.0,99355.0,0.12115281]
[1738687555348,1.776672,99356.0,99355.0,0.01876775]
[1738687555554,1.77714071,99356.0,99355.0,0.01876775]
[1738687556477,1.77914071,99356.0,99355.0,0.01876775]
[1738687556682,1.77814071,99356.0,99355.0,0.01876775]
[1738687557106,1.62716871,99356.0,99355.0,0.01876775]
[1738687557304,1.62716871,99356.0,99349.0,0.201309]
[1738687557507,0.150973,99355.0,99350.0,0.10238506]
[1738687557763,1.62716871,99356.0,99350.0,0.10238506]
[1738687557976,0.27914071,99356.0,99350.0,0.25336406]
[1738687558146,0.12816871,99356.0,99350.0,0.10238506]
[1738687558349,0.12816871,99356.0,99353.0,0.150976]
[1738687558567,0.12816871,99356.0,99351.0,0.201306]
[1738687558568,0.12716871,99356.0,99354.0,0.25336006]
[1738687558795,0.12716871,99356.0,99354.0,0.10238506]
[1738687559160,0.12716871,99356.0,99354.0,0.25335906]
[1738687559414,0.12616871,99356.0,99355.0,0.150973]
[1738687559618,0.12616871,99356.0,99355.0,0.25335806]
[1738687559819,0.12716871,99356.0,99355.0,0.25335806]
[1738687559932,0.12616871,99356.0,99355.0,0.27212848]
[1738687560343,0.04966871,99356.0,99355.0,0.27212848]
[1738687560554,0.04866871,99356.0,99355.0,0.27212848]
[1738687561199,0.00046871,99356.0,99355.0,0.27212848]
[1738687561395,0.00046871,99356.0,99355.0,0.29512848]
[1738687561595,0.00046871,99356.0,99355.0,0.32640329]
[1738687562061,0.00146871,99356.0,99355.0,0.47640329]
[1738687562262,0.00046871,99356.0,99355.0,0.47640329]
[1738687562663,0.00046871,99356.0,99355.0,0.46439532]
[1738687562911,0.00046871,99356.0,99355.0,0.43212051]
[1738687563109,0.00046871,99356.0,99355.0,0.46217889]
[1738687563292,0.00046871,99356.0,99355.0,0.46317889]
[1738687563686,0.00046871,99356.0,99355.0,0.31217889]
[1738687563950,0.00046871,99356.0,99355.0,0.15221386]
[1738687564170,0.00046871,99356.0,99355.0,0.12215548]
[1738687564371,0.15144071,99356.0,99355.0,0.01977042]
[1738687564574,1.65144071,99356.0,99355.0,0.01977042]
[1738687564780,1.82953543,99356.0,99355.0,0.01977042]
[1738687564981,1.77524071,99356.0,99355.0,0.01977042]
[1738687565360,1.77524071,99356.0,99355.0,0.002]
[1738687565609,1.78526858,99356.0,99355.0,0.001]
[1738687565826,1.63429658,99356.0,99334.0,0.01877042]
[1738687566035,0.201317,99346.0,99335.0,0.10238506]
[1738687566240,0.150997,99340.0,99335.0,0.10238506]
[1738687566443,0.13629658,99356.0,99335.0,0.10238506]
[1738687566656,0.151,99338.0,99335.0,0.10238506]
[1738687566862,0.151001,99337.0,99336.0,0.01877042]
[1738687567050,0.229901,99337.0,99336.0,0.12115548]
[1738687567185,0.229901,99337.0,99336.0,0.12225563]
[1738687567850,0.279101,99337.0,99336.0,0.01987057]
[1738687569112,0.279101,99337.0,99336.0,0.02087057]
[1738687569303,0.279101,99337.0,99336.0,0.00110015]
[1738687569498,0.279101,99337.0,99336.0,0.00210015]
[1738687569676,0.1281,99337.0,99336.0,0.10238506]
[1738687569848,0.1281,99337.0,99336.0,0.10351962]
[1738687570050,0.1291,99337.0,99336.0,0.10351962]
[1738687570398,0.0502,99337.0,99336.0,0.10351962]
[1738687570626,0.001,99337.0,99336.0,0.25452162]
[1738687571797,0.0473,99351.0,99336.0,0.12226708]
[1738687572017,0.0473,99351.0,99350.0,0.150981]
[1738687572218,0.198279,99351.0,99350.0,0.10238506]
[1738687572439,1.698279,99351.0,99350.0,0.10350963]
[1738687572824,1.5473,99351.0,99350.0,0.10238506]
[1738687573062,0.00046871,99356.0,99350.0,0.10238506]
[1738687573191,0.00046871,99356.0,99355.0,0.150973]
[1738687573392,0.00046871,99356.0,99355.0,0.25456558]
[1738687573600,0.00046871,99356.0,99355.0,0.25447331]
[1738687574244,0.00046871,99356.0,99355.0,0.29622365]
[1738687574446,0.047,99377.0,99356.0,0.023]
[1738687574686,0.047,99377.0,99376.0,0.150941]
[1738687574861,0.047,99377.0,99376.0,0.25332606]
[1738687575064,0.0484,99389.0,99376.0,0.2544323]
[1738687575335,0.00024733,99381.0,99380.0,0.150935]
[1738687575464,0.00024733,99381.0,99380.0,0.25332006]
[1738687575671,0.00024733,99381.0,99380.0,0.10238506]
[1738687575853,0.00024733,99381.0,99380.0,0.27317664]
[1738687576683,0.00124733,99381.0,99380.0,0.27317664]
[1738687577431,0.00124733,99381.0,99380.0,0.12224164]
[1738687577733,0.0477,99358.0,99330.0,0.16328782]
[1738687577878,0.0801,99357.0,99351.0,0.18262136]
[1738687578076,0.0801,99357.0,99351.0,0.10238506]
[1738687578480,0.0801,99357.0,99353.0,0.150976]
[1738687578833,0.0801,99357.0,99354.0,0.10238506]
[1738687579380,0.0611,99357.0,99354.0,0.10238506]
[1738687579784,0.0477,99358.0,99354.0,0.10238506]
[1738687579984,0.0477,99371.0,99370.0,0.15095]
[1738687580207,0.0477,99371.0,99370.0,0.10238506]
[1738687581083,0.0477,99371.0,99370.0,0.25333506]
[1738687581852,1.5,99374.0,99373.0,0.150946]
[1738687582052,0.0001067,99392.0,99380.0,0.150935]
[1738687582243,0.0001067,99392.0,99380.0,0.25332006]
[1738687582614,0.0001067,99392.0,99380.0,0.27632006]
[1738687583129,0.0001067,99392.0,99380.0,0.25332006]
[1738687584459,0.197007,99399.0,99392.0,0.150916]
[1738687584587,0.197007,99399.0,99393.0,0.10238506]
[1738687584949,0.15091,99397.0,99393.0,0.10238506]
[1738687585149,0.0461,99399.0,99393.0,0.10238506]
[1738687585325,0.197007,99399.0,99393.0,0.10238506]
[1738687585543,0.198007,99399.0,99393.0,0.10238506]
[1738687585889,0.0461,99399.0,99393.0,0.10238506]
[1738687586090,0.150912,99396.0,99393.0,0.10238506]
[1738687586293,0.150914,99394.0,99393.0,0.10238506]
[1738687586505,0.201211,99398.0,99393.0,0.10238506]
[1738687586729,0.150916,99393.0,99376.0,0.150941]
[1738687586934,0.150921,99390.0,99383.0,0.15093]
[1738687587155,0.0471,99399.0,99384.0,0.10238506]
[1738687587800,0.150922,99389.0,99384.0,0.10238506]
[1738687588600,0.150928,99385.0,99384.0,0.10238506]
[1738687589062,0.201211,99398.0,99384.0,0.10238506]
[1738687589254,0.0461,99399.0,99384.0,0.10238506]
[1738687589462,0.0461,99399.0,99389.0,0.16328782]
[1738687589667,0.0461,99399.0,99390.0,0.10238506]
[1738687589906,0.0461,99399.0,99398.0,0.150908]
[1738687590108,0.0461,99399.0,99398.0,0.10238506]
[1738687590317,0.197006,99399.0,99398.0,0.10238506]
[1738687590699,0.0461,99399.0,99398.0,0.10238506]
[1738687590900,1.5461,99399.0,99398.0,0.10238506]
[1738687592152,1.5471,99399.0,99398.0,0.10238506]
[1738687592328,1.5501,99399.0,99398.0,0.10238506]
[1738687592651,1.5461,99399.0,99398.0,0.25329306]
[1738687593104,0.004,99399.0,99398.0,0.25329306]
[1738687594322,0.003,99399.0,99398.0,0.25329306]
[1738687594448,0.7488245,99408.0,99400.0,0.201207]
[1738687594647,0.7488245,99408.0,99401.0,0.10238506]
[1738687595054,0.7488245,99408.0,99407.0,0.150894]
[1738687595260,0.7488245,99408.0,99407.0,0.25327906]
[1738687595505,0.74709488,99408.0,99407.0,0.42627906]
[1738687595709,0.75109488,99408.0,99407.0,0.42627906]
[1738687595968,0.71085688,99408.0,99407.0,1.00860545]
[1738687596146,0.64649988,99408.0,99407.0,0.97747906]
[1738687596349,0.63633821,99408.0,99407.0,0.97747906]
[1738687596604,0.63109294,99408.0,99407.0,1.01856483]
[1738687596819,0.61097394,99408.0,99407.0,1.01856483]
[1738687597037,0.55061694,99408.0,99407.0,1.03723279]
[1738687597451,0.55061694,99408.0,99407.0,1.00614702]
[1738687597654,0.54961694,99408.0,99407.0,0.99614702]
[1738687598006,0.46914094,99408.0,99407.0,1.00714702]
[1738687598207,0.44902194,99408.0,99407.0,1.00714702]
[1738687598407,0.0002245,99408.0,99407.0,1.00614702]
[1738687598589,0.0002245,99408.0,99407.0,1.00714702]
[1738687599019,0.0002245,99408.0,99407.0,0.99714702]
[1738687599574,1.5,99449.0,99437.0,0.150848]
[1738687599754,1.5,99449.0,99438.0,0.10238506]
[1738687599755,0.0817,99447.0,99438.0,0.10238506]
[1738687599920,0.150846,99439.0,99438.0,0.10238506]
[1738687600099,0.201118,99445.0,99407.0,0.01966796]
[1738687600100,0.0817,99447.0,99417.0,0.201172]
[1738687600325,0.150873,99422.0,99418.0,0.10238506]
[1738687600541,0.201118,99444.0,99418.0,0.10238506]
[1738687600746,0.15,99445.0,99418.0,0.10238506]
[1738687600982,1.5,99419.0,99418.0,0.10238506]
[1738687602191,1.5,99419.0,99418.0,0.10338506]
[1738687602435,0.0001405,99419.0,99418.0,0.25426306]
[1738687603421,0.0001405,99419.0,99418.0,0.42726306]
[1738687603903,0.4489405,99419.0,99418.0,0.42726306]
[1738687604526,0.4299405,99419.0,99418.0,0.42626306]
[1738687604735,0.4299405,99419.0,99418.0,0.42726306]
[1738687604932,0.4299405,99419.0,99418.0,1.29726306]
[1738687605312,0.4299405,99419.0,99418.0,1.29826306]
[1738687606132,0.4299405,99419.0,99418.0,1.30863016]
[1738687606350,0.4299405,99419.0,99418.0,1.34886116]
[1738687608245,0.4300472,99419.0,99418.0,1.34886116]
[1738687608677,0.4300472,99419.0,99418.0,1.34786116]
[1738687608937,0.0001067,99419.0,99418.0,1.30863016]
[1738687609541,0.1233,99438.0,99418.0,0.44355216]
[1738687609672,0.150851,99436.0,99418.0,0.44355216]
[1738687609882,0.1233,99438.0,99427.0,0.150863]
[1738687610100,0.150854,99434.0,99428.0,0.10238506]
[1738687610302,1.650855,99433.0,99428.0,0.10238506]
[1738687610505,1.5,99433.0,99428.0,0.10238506]
[1738687610735,0.150861,99429.0,99428.0,0.10238506]
[1738687610876,0.150856,99433.0,99428.0,0.10238506]
[1738687611209,0.32443,99438.0,99428.0,0.10238506]
[1738687611371,0.201138,99435.0,99428.0,0.10238506]
[1738687611758,0.150853,99434.0,99428.0,0.10238506]
[1738687611888,0.150856,99433.0,99428.0,0.10238506]
[1738687612098,0.150857,99432.0,99428.0,0.10238506]
[1738687612332,0.150857,99432.0,99428.0,0.10338506]
[1738687612570,1.5,99437.0,99428.0,0.10338506]
[1738687612767,0.150858,99432.0,99428.0,0.10338506]
[1738687613131,0.150856,99432.0,99428.0,0.10338506]
[1738687613555,0.150859,99430.0,99428.0,0.10338506]
[1738687613869,0.201136,99435.0,99428.0,0.10238506]
[1738687614040,1.701132,99437.0,99428.0,0.10338506]
[1738687614242,0.43,99430.0,99428.0,0.10338506]
[1738687614445,0.43,99430.0,99428.0,0.25324706]
[1738687614647,0.43,99430.0,99428.0,0.25424706]
[1738687614842,0.43,99430.0,99428.0,0.10338506]
[1738687615048,0.43,99430.0,99428.0,0.10238506]
[1738687615256,0.58086,99430.0,99428.0,0.10338506]
[1738687615452,0.43,99430.0,99428.0,0.10338506]
[1738687615713,0.43,99430.0,99428.0,0.10238506]
[1738687615964,0.150861,99429.0,99428.0,0.10238506]
[1738687616168,0.580861,99430.0,99428.0,0.10238506]
[1738687616354,0.150861,99429.0,99428.0,0.10238506]
[1738687616580,0.150878,99418.0,99411.0,0.150887]
[1738687616792,0.43,99430.0,99412.0,0.10238506]
[1738687617003,0.043,99429.0,99412.0,0.10238506]
[1738687617211,0.201148,99429.0,99428.0,0.001]
[1738687617421,0.478948,99429.0,99428.0,0.001]
[1738687617627,0.478948,99429.0,99411.0,0.0001405]
[1738687617628,0.278687,99412.0,99411.0,0.0001405]
[1738687618418,0.278687,99412.0,99411.0,0.0011405]
[1738687618628,0.428687,99412.0,99411.0,0.0011405]
[1738687618852,0.428687,99412.0,99411.0,0.0001405]
[1738687619061,0.430687,99412.0,99411.0,0.0001405]
[1738687619696,1.930687,99412.0,99411.0,0.0001405]
[1738687620266,1.928687,99412.0,99411.0,0.0001405]
[1738687620461,1.929687,99412.0,99411.0,0.0001405]
[1738687620665,0.44594469,99412.0,99411.0,0.0001405]
[1738687620894,0.44494469,99412.0,99411.0,0.0001405]
[1738687621097,0.28894469,99412.0,99411.0,0.0001405]
[1738687621305,0.29094469,99412.0,99411.0,0.0001405]
[1738687621531,0.39943941,99412.0,99411.0,0.0011405]
[1738687621736,0.29694469,99412.0,99411.0,0.0011405]
[1738687622377,1.79094469,99412.0,99411.0,0.0001405]
[1738687623161,0.300911,99396.0,99380.0,0.00022428]
[1738687623387,0.439811,99396.0,99381.0,0.0802363]
[1738687623857,1.939811,99396.0,99381.0,0.0802363]
[1738687624306,1.780811,99396.0,99381.0,0.0802363]
[1738687624543,1.782811,99396.0,99381.0,0.0802363]
[1738687624833,1.782811,99396.0,99380.0,0.00022428]
[1738687625063,2.04030572,99396.0,99395.0,0.00122407]
[1738687625312,2.04330572,99396.0,99380.0,0.00022428]
[1738687625563,0.300934,99381.0,99380.0,0.00022428]
[1738687626259,0.430234,99381.0,99380.0,0.00022428]
[1738687626392,0.53261906,99381.0,99380.0,0.00022428]
[1738687626950,0.56296581,99381.0,99380.0,0.00022428]
[1738687627363,0.276673,99355.0,99354.0,0.00022407]
[1738687627557,0.276673,99355.0,99354.0,0.0003646]
[1738687628345,0.426673,99355.0,99354.0,0.0003646]
[1738687629124,0.428673,99355.0,99354.0,0.0003646]
[1738687629876,1.928673,99355.0,99354.0,0.0003646]
[1738687630078,0.278673,99355.0,99354.0,0.0003646]
[1738687630292,0.0554,99355.0,99354.0,0.0003646]
[1738687630439,0.156973,99355.0,99354.0,0.0003646]
[1738687630852,0.156973,99355.0,99354.0,0.10274966]
[1738687630853,0.004,99355.0,99354.0,0.10274966]
[1738687631262,0.150941,99377.0,99354.0,0.10395736]
[1738687631464,0.201241,99383.0,99355.0,0.10238506]
[1738687631971,0.201241,99383.0,99356.0,0.00120759]
[1738687632184,0.150945,99374.0,99366.0,0.150956]
[1738687632384,0.150945,99374.0,99367.0,0.25333906]
[1738687632775,0.201243,99382.0,99367.0,0.10238506]
[1738687633027,1.5,99384.0,99367.0,0.25333906]
[1738687633204,0.150943,99376.0,99368.0,0.150953]
[1738687633407,1.5,99384.0,99371.0,0.201265]
[1738687633667,0.0894148,99394.0,99386.0,0.150926]
[1738687633864,0.0894148,99394.0,99387.0,0.25330806]
[1738687634066,0.0894148,99394.0,99387.0,0.10238506]
[1738687634264,0.150919,99391.0,99387.0,0.10238506]
[1738687634501,0.15092,99390.0,99387.0,0.10238506]
[1738687634894,0.0452,99402.0,99387.0,0.10238506]